[Event "CCT Chessable Masters Play-In 2025"]
[Site "Online"]
[Date "2025.02.17"]
[Round "3.5"]
[White "Tabatabaei, M. Amin"]
[Black "Ivic, Velimir"]
[Result "1-0"]
[ECO "E14"]
[WhiteElo "2666"]
[BlackElo "2622"]
[PlyCount "79"]
[EventDate "2025.02.13"]
[EventType "swiss"]
[EventCountry "NET"]
[TimeControl "600"]
[WhiteClock "0:00:46"]
[BlackClock "0:00:09"]

1. d4 {[%emt 0:00:01]} d5 {[%emt 0:00:06]} 2. Nf3 {[%emt 0:00:01]} Nf6 {[%emt 0:00:01]} 3. e3 {[%emt 0:00:01]} e6 {[%emt 0:00:03]} 4. Nbd2 {[%emt 0:00:03]} b6 {[%emt 0:00:02]} 5. b3 {[%emt 0:00:01]} Bb7 {[%emt 0:00:00]} 6. Bb2 {[%emt 0:00:01]} Nbd7 {[%emt 0:00:01]} 7. Bd3 {[%emt 0:00:01]} Bd6 {[%emt 0:00:01]} 8. O-O {[%emt 0:00:01]} O-O {[%emt 0:00:01]} 9. c4 {[%emt 0:00:01]} Qe7 {[%emt 0:00:12]} 10. Rc1 {[%emt 0:00:08]} c5 {[%emt 0:00:08]} 11. cxd5 {[%emt 0:00:07]} exd5 {[%emt 0:00:01]} 12. Qe2 {[%emt 0:00:35]} a6 {[%emt 0:00:21]} 13. Rfd1 {[%emt 0:00:05]} Rfe8 {[%emt 0:00:09]} 14. a4 {[%emt 0:00:05]} Ne4 {[%emt 0:00:05]} 15. Nf1 {[%emt 0:00:21]} h5 {[%emt 0:00:43]} 16. dxc5 {[%emt 0:00:23]} bxc5 {[%emt 0:00:07]} 17. N3d2 {[%emt 0:01:00]} Nef6 {[%emt 0:00:23]} 18. Ng3 {[%emt 0:00:28]} g6 {[%emt 0:00:05]} 19. Nf3 {[%emt 0:00:01]} Ng4 {[%emt 0:00:35]} 20. Re1 {[%emt 0:00:49]} h4 {[%emt 0:00:22]} 21. Nf1 {[%emt 0:00:01]} Nge5 {[%emt 0:01:19]} 22. h3 {[%emt 0:00:02]} d4 {[%emt 0:00:20]} 23. N1d2 {[%emt 0:00:02]} Nxd3 {[%emt 0:00:18]} 24. Qxd3 {[%emt 0:00:01]} Ne5 {[%emt 0:00:02]} 25. Nxe5 {[%emt 0:00:25]} Qxe5 {[%emt 0:00:00]} 26. f4 {[%emt 0:00:01]} Qh5 {[%emt 0:00:25]} 27. Nc4 {[%emt 0:00:18]} Bc7 {[%emt 0:00:08]} 28. Rcd1 {[%emt 0:00:41]} Rad8 {[%emt 0:00:06]} 29. exd4 {[%emt 0:00:33]} Qd5 {[%emt 0:00:53]} 30. Re2 {[%emt 0:00:47]} Bxf4 {[%emt 0:00:11]} 31. Rf1 {[%emt 0:00:27]} Bg3 {[%emt 0:00:43]} 32. Ne3 {[%emt 0:00:07]} Qe4 {[%emt 0:00:27]} 33. Qc4 {[%emt 0:00:08]} Bf4 {[%emt 0:00:10]} 34. Rxf4 {[%emt 0:01:07]} Qxf4 {[%emt 0:00:00]} 35. Rf2 {[%emt 0:00:00]} Qc7 {[%emt 0:00:32]} 36. Qc1 {[%emt 0:00:01]} f5 {[%emt 0:00:16]} 37. d5 {[%emt 0:00:07]} Re5 {[%emt 0:00:20]} 38. Bxe5 {[%emt 0:00:08]} Qxe5 {[%emt 0:00:01]} 39. Nc4 {[%emt 0:00:01]} Qxd5 {[%emt 0:00:14]} 40. Rd2 {[%emt 0:00:04]} 1-0

[Event "CCT Chessable Masters Play-In 2025"]
[Site "Online"]
[Date "2025.02.17"]
[Round "3.6"]
[White "Martirosyan, Haik M."]
[Black "Le, Tuan Minh"]
[Result "1-0"]
[ECO "D13"]
[WhiteElo "2645"]
[BlackElo "2598"]
[PlyCount "135"]
[EventDate "2025.02.13"]
[EventType "swiss"]
[EventCountry "NET"]
[TimeControl "600"]
[WhiteClock "0:00:18"]
[BlackClock "0:00:16"]

1. d4 {[%emt 0:00:01]} d5 {[%emt 0:00:02]} 2. c4 {[%emt 0:00:01]} c6 {[%emt 0:00:00]} 3. Nf3 {[%emt 0:00:01]} Nf6 {[%emt 0:00:01]} 4. Nc3 {[%emt 0:00:00]} a6 {[%emt 0:00:01]} 5. cxd5 {[%emt 0:00:10]} cxd5 {[%emt 0:00:01]} 6. Bf4 {[%emt 0:00:03]} Nc6 {[%emt 0:00:02]} 7. e3 {[%emt 0:00:01]} Bg4 {[%emt 0:00:02]} 8. h3 {[%emt 0:00:21]} Bxf3 {[%emt 0:00:17]} 9. Qxf3 {[%emt 0:00:00]} e6 {[%emt 0:00:01]} 10. Bd3 {[%emt 0:00:02]} Bd6 {[%emt 0:00:04]} 11. Bg5 {[%emt 0:00:10]} Be7 {[%emt 0:00:04]} 12. O-O {[%emt 0:00:03]} O-O {[%emt 0:00:03]} 13. Rac1 {[%emt 0:00:01]} Rc8 {[%emt 0:00:02]} 14. Na4 {[%emt 0:00:30]} Nd7 {[%emt 0:00:10]} 15. Bxe7 {[%emt 0:00:16]} Qxe7 {[%emt 0:00:34]} 16. a3 {[%emt 0:00:09]} g6 {[%emt 0:00:19]} 17. Qg3 {[%emt 0:00:33]} Rfd8 {[%emt 0:00:33]} 18. Rfd1 {[%emt 0:01:01]} Kf8 {[%emt 0:01:01]} 19. b4 {[%emt 0:00:12]} e5 {[%emt 0:00:07]} 20. dxe5 {[%emt 0:00:30]} Ndxe5 {[%emt 0:01:17]} 21. Bf1 {[%emt 0:00:06]} Kg7 {[%emt 0:00:43]} 22. Nb6 {[%emt 0:00:04]} Rb8 {[%emt 0:00:06]} 23. Nxd5 {[%emt 0:00:08]} Qe6 {[%emt 0:00:03]} 24. e4 {[%emt 0:00:04]} Nd7 {[%emt 0:00:05]} 25. Re1 {[%emt 0:00:19]} Rbc8 {[%emt 0:00:28]} 26. Rcd1 {[%emt 0:00:16]} Nf6 {[%emt 0:00:18]} 27. Qh4 {[%emt 0:00:35]} h6 {[%emt 0:00:29]} 28. f3 {[%emt 0:00:16]} Ne7 {[%emt 0:00:22]} 29. Nf4 {[%emt 0:00:56]} Qe5 {[%emt 0:00:26]} 30. Nd3 {[%emt 0:00:01]} Qd4+ {[%emt 0:00:00]} 31. Qf2 {[%emt 0:00:01]} Nc6 {[%emt 0:00:04]} 32. Nc5 {[%emt 0:00:04]} Qxf2+ {[%emt 0:00:25]} 33. Kxf2 {[%emt 0:00:01]} Rc7 {[%emt 0:00:07]} 34. Rxd8 {[%emt 0:00:10]} Nxd8 {[%emt 0:00:00]} 35. Rd1 {[%emt 0:00:01]} Ne6 {[%emt 0:00:03]} 36. e5 {[%emt 0:00:14]} Ng8 {[%emt 0:00:07]} 37. Rd7 {[%emt 0:00:34]} Rxd7 {[%emt 0:00:03]} 38. Nxd7 {[%emt 0:00:00]} Ne7 {[%emt 0:00:08]} 39. Bc4 {[%emt 0:00:01]} Nd8 {[%emt 0:00:12]} 40. f4 {[%emt 0:00:04]} g5 {[%emt 0:00:02]} 41. g3 {[%emt 0:00:01]} gxf4 {[%emt 0:00:07]} 42. gxf4 {[%emt 0:00:00]} Nf5 {[%emt 0:00:01]} 43. Kf3 {[%emt 0:00:04]} Nd4+ {[%emt 0:00:00]} 44. Ke4 {[%emt 0:00:01]} Nc2 {[%emt 0:00:00]} 45. f5 {[%emt 0:00:05]} Nxa3 {[%emt 0:00:01]} 46. f6+ {[%emt 0:00:00]} Kg6 {[%emt 0:00:02]} 47. Bd3 {[%emt 0:00:01]} Kg5 {[%emt 0:00:02]} 48. Nc5 {[%emt 0:00:03]} Nb5 {[%emt 0:00:04]} 49. Bxb5 {[%emt 0:00:04]} axb5 {[%emt 0:00:00]} 50. Kd5 {[%emt 0:00:01]} Kg6 {[%emt 0:00:01]} 51. Kd6 {[%emt 0:00:13]} Nc6 {[%emt 0:00:03]} 52. Nd7 {[%emt 0:00:18]} Nd4 {[%emt 0:00:04]} 53. Kc5 {[%emt 0:00:10]} Nf3 {[%emt 0:00:01]} 54. Kxb5 {[%emt 0:00:05]} Kf5 {[%emt 0:00:01]} 55. Kb6 {[%emt 0:00:02]} Ke6 {[%emt 0:00:00]} 56. Kc7 {[%emt 0:00:05]} b5 {[%emt 0:00:03]} 57. Kd8 {[%emt 0:00:05]} h5 {[%emt 0:00:00]} 58. Ke8 {[%emt 0:00:03]} h4 {[%emt 0:00:03]} 59. Nc5+ {[%emt 0:00:00]} Kxe5 {[%emt 0:00:00]} 60. Kxf7 {[%emt 0:00:00]} Ng5+ {[%emt 0:00:00]} 61. Kg6 {[%emt 0:00:08]} Nxh3 {[%emt 0:00:10]} 62. f7 {[%emt 0:00:03]} Nf4+ {[%emt 0:00:00]} 63. Kg5 {[%emt 0:00:03]} h3 {[%emt 0:00:06]} 64. f8=Q {[%emt 0:00:00]} Nd5 {[%emt 0:00:01]} 65. Qf5+ {[%emt 0:00:04]} Kd4 {[%emt 0:00:00]} 66. Qd3+ {[%emt 0:00:02]} Ke5 {[%emt 0:00:01]} 67. Qe4+ {[%emt 0:00:00]} Kd6 {[%emt 0:00:01]} 68. Qe6+ {[%emt 0:00:01]} 1-0

[Event "CCT Chessable Masters Play-In 2025"]
[Site "Online"]
[Date "2025.02.17"]
[Round "3.7"]
[White "Gledura, Benjamin"]
[Black "Niemann, Hans Moke"]
[Result "1-0"]
[ECO "E29"]
[WhiteElo "2659"]
[BlackElo "2734"]
[PlyCount "63"]
[EventDate "2025.02.13"]
[EventType "swiss"]
[EventCountry "NET"]
[TimeControl "600"]
[WhiteClock "0:02:36"]
[BlackClock "0:00:32"]

1. d4 {[%emt 0:00:04]} Nf6 {[%emt 0:00:02]} 2. c4 {[%emt 0:00:11]} e6 {[%emt 0:00:01]} 3. Nc3 {[%emt 0:00:06]} Bb4 {[%emt 0:00:02]} 4. e3 {[%emt 0:00:02]} O-O {[%emt 0:00:03]} 5. a3 {[%emt 0:00:02]} Bxc3+ {[%emt 0:00:06]} 6. bxc3 {[%emt 0:00:00]} c5 {[%emt 0:00:46]} 7. Bd3 {[%emt 0:00:07]} Nc6 {[%emt 0:00:07]} 8. Ne2 {[%emt 0:00:04]} d6 {[%emt 0:00:03]} 9. e4 {[%emt 0:00:06]} e5 {[%emt 0:00:19]} 10. d5 {[%emt 0:00:04]} Ne7 {[%emt 0:00:13]} 11. f3 {[%emt 0:00:47]} Ne8 {[%emt 0:01:00]} 12. g4 {[%emt 0:00:53]} Ng6 {[%emt 0:00:06]} 13. Be3 {[%emt 0:00:07]} Nh4 {[%emt 0:00:04]} 14. O-O {[%emt 0:00:13]} g5 {[%emt 0:00:31]} 15. Ng3 {[%emt 0:00:09]} Ng6 {[%emt 0:00:20]} 16. Qd2 {[%emt 0:00:07]} h6 {[%emt 0:00:28]} 17. Kf2 {[%emt 0:00:07]} Qf6 {[%emt 0:01:20]} 18. Nf5 {[%emt 0:00:12]} Bxf5 {[%emt 0:00:37]} 19. gxf5 {[%emt 0:00:16]} Nf4 {[%emt 0:00:01]} 20. h4 {[%emt 0:00:46]} gxh4 {[%emt 0:00:01]} 21. Bxf4 {[%emt 0:00:52]} exf4 {[%emt 0:00:01]} 22. Qxf4 {[%emt 0:00:00]} Kh7 {[%emt 0:00:12]} 23. Rh1 {[%emt 0:00:15]} Rh8 {[%emt 0:00:33]} 24. Qxh4 {[%emt 0:00:43]} Qxh4+ {[%emt 0:00:12]} 25. Rxh4 {[%emt 0:00:00]} Nf6 {[%emt 0:00:01]} 26. f4 {[%emt 0:00:01]} Rae8 {[%emt 0:00:04]} 27. Re1 {[%emt 0:00:03]} Rhg8 {[%emt 0:00:19]} 28. Kf3 {[%emt 0:00:18]} Kg7 {[%emt 0:00:42]} 29. e5 {[%emt 0:00:04]} Nd7 {[%emt 0:00:01]} 30. f6+ {[%emt 0:00:43]} Kf8 {[%emt 0:00:00]} 31. Bf5 {[%emt 0:00:02]} Nxf6 {[%emt 0:01:13]} 32. Rxh6 {[%emt 0:00:00]} 1-0

[Event "CCT Chessable Masters Play-In 2025"]
[Site "Online"]
[Date "2025.02.17"]
[Round "3.8"]
[White "Lu, Shanglei"]
[Black "Vokhidov, Shamsiddin"]
[Result "1/2-1/2"]
[ECO "B47"]
[WhiteElo "2618"]
[BlackElo "2670"]
[PlyCount "117"]
[EventDate "2025.02.13"]
[EventType "swiss"]
[EventCountry "NET"]
[TimeControl "600"]
[WhiteClock "0:01:38"]
[BlackClock "0:01:43"]

1. e4 {[%emt 0:00:01]} c5 {[%emt 0:00:01]} 2. Nf3 {[%emt 0:00:03]} e6 {[%emt 0:00:01]} 3. d4 {[%emt 0:00:01]} cxd4 {[%emt 0:00:00]} 4. Nxd4 {[%emt 0:00:01]} Nc6 {[%emt 0:00:01]} 5. Nc3 {[%emt 0:00:00]} Qc7 {[%emt 0:00:00]} 6. g3 {[%emt 0:00:04]} a6 {[%emt 0:00:02]} 7. Bg2 {[%emt 0:00:01]} Nf6 {[%emt 0:00:01]} 8. O-O {[%emt 0:00:01]} Bc5 {[%emt 0:00:03]} 9. Nxc6 {[%emt 0:00:14]} dxc6 {[%emt 0:00:00]} 10. Na4 {[%emt 0:00:09]} Ba7 {[%emt 0:00:01]} 11. c4 {[%emt 0:00:01]} Nd7 {[%emt 0:00:06]} 12. Qg4 {[%emt 0:00:34]} O-O {[%emt 0:00:01]} 13. Bf4 {[%emt 0:00:10]} Ne5 {[%emt 0:00:09]} 14. Qe2 {[%emt 0:00:07]} b5 {[%emt 0:00:10]} 15. Nc3 {[%emt 0:00:10]} Bb7 {[%emt 0:00:30]} 16. cxb5 {[%emt 0:00:39]} axb5 {[%emt 0:00:13]} 17. Rac1 {[%emt 0:00:02]} Qb8 {[%emt 0:00:10]} 18. Rfd1 {[%emt 0:00:06]} b4 {[%emt 0:00:18]} 19. Na4 {[%emt 0:00:14]} Bxf2+ {[%emt 0:00:17]} 20. Qxf2 {[%emt 0:00:02]} Rxa4 {[%emt 0:00:01]} 21. b3 {[%emt 0:00:11]} Ra5 {[%emt 0:00:03]} 22. Rc5 {[%emt 0:00:11]} Rxc5 {[%emt 0:00:11]} 23. Qxc5 {[%emt 0:00:00]} f6 {[%emt 0:00:01]} 24. Bh3 {[%emt 0:00:34]} Bc8 {[%emt 0:00:16]} 25. Kh1 {[%emt 0:01:22]} h6 {[%emt 0:00:07]} 26. Qe7 {[%emt 0:00:09]} Qb6 {[%emt 0:00:38]} 27. Rf1 {[%emt 0:00:36]} Qd4 {[%emt 0:00:09]} 28. Bxe6+ {[%emt 0:00:06]} Bxe6 {[%emt 0:00:35]} 29. Qxe6+ {[%emt 0:00:01]} Nf7 {[%emt 0:00:24]} 30. Qxc6 {[%emt 0:00:02]} Kh7 {[%emt 0:00:21]} 31. Qc4 {[%emt 0:00:09]} Qb6 {[%emt 0:00:21]} 32. Kg2 {[%emt 0:00:18]} Qb7 {[%emt 0:00:09]} 33. Qd5 {[%emt 0:00:02]} Qa7 {[%emt 0:00:03]} 34. Rf2 {[%emt 0:00:04]} Re8 {[%emt 0:00:05]} 35. Rc2 {[%emt 0:00:04]} Ne5 {[%emt 0:00:02]} 36. h4 {[%emt 0:00:04]} Qb6 {[%emt 0:00:15]} 37. h5 {[%emt 0:00:36]} Qa7 {[%emt 0:00:03]} 38. Qc5 {[%emt 0:00:06]} Qb7 {[%emt 0:00:02]} 39. Re2 {[%emt 0:00:02]} Nd3 {[%emt 0:00:04]} 40. Qf5+ {[%emt 0:00:02]} Kh8 {[%emt 0:00:04]} 41. Re3 {[%emt 0:00:12]} Nxf4+ {[%emt 0:00:04]} 42. gxf4 {[%emt 0:00:00]} Qc6 {[%emt 0:00:03]} 43. Kf3 {[%emt 0:00:07]} Qc1 {[%emt 0:00:02]} 44. Rd3 {[%emt 0:00:12]} Qf1+ {[%emt 0:00:05]} 45. Ke3 {[%emt 0:00:01]} Qe1+ {[%emt 0:00:01]} 46. Kf3 {[%emt 0:00:00]} Qh1+ {[%emt 0:00:12]} 47. Ke3 {[%emt 0:00:02]} Qg1+ {[%emt 0:00:05]} 48. Kf3 {[%emt 0:00:01]} Qb1 {[%emt 0:00:08]} 49. Rd7 {[%emt 0:00:07]} Rc8 {[%emt 0:00:32]} 50. Kg4 {[%emt 0:00:13]} Qg1+ {[%emt 0:00:06]} 51. Kh4 {[%emt 0:00:00]} Qh2+ {[%emt 0:00:07]} 52. Kg4 {[%emt 0:00:01]} Qe2+ {[%emt 0:00:33]} 53. Kh4 {[%emt 0:00:02]} Qe1+ {[%emt 0:00:04]} 54. Kg4 {[%emt 0:00:01]} Qg1+ {[%emt 0:00:04]} 55. Kh4 {[%emt 0:00:00]} Qf2+ {[%emt 0:00:05]} 56. Kg4 {[%emt 0:00:01]} Qg2+ {[%emt 0:00:02]} 57. Kh4 {[%emt 0:00:01]} Qf2+ {[%emt 0:00:04]} 58. Kg4 {[%emt 0:00:01]} Qg2+ {[%emt 0:00:02]} 59. Kh4 {[%emt 0:00:01]} 1/2-1/2

[Event "CCT Chessable Masters Play-In 2025"]
[Site "Online"]
[Date "2025.02.17"]
[Round "3.9"]
[White "Chigaev, Maksim"]
[Black "Bok, Benjamin"]
[Result "1-0"]
[ECO "C45"]
[WhiteElo "2632"]
[BlackElo "2583"]
[PlyCount "57"]
[EventDate "2025.02.13"]
[EventType "swiss"]
[EventCountry "NET"]
[TimeControl "600"]
[WhiteClock "0:02:46"]
[BlackClock "0:00:06"]

1. e4 {[%emt 0:00:09]} e5 {[%emt 0:00:02]} 2. Nf3 {[%emt 0:00:01]} Nc6 {[%emt 0:00:01]} 3. d4 {[%emt 0:00:01]} exd4 {[%emt 0:00:01]} 4. Nxd4 {[%emt 0:00:00]} Nf6 {[%emt 0:00:01]} 5. Nxc6 {[%emt 0:00:03]} bxc6 {[%emt 0:00:01]} 6. Qe2 {[%emt 0:00:11]} a5 {[%emt 0:01:04]} 7. e5 {[%emt 0:00:06]} Nd5 {[%emt 0:00:03]} 8. c4 {[%emt 0:00:04]} Bb4+ {[%emt 0:01:03]} 9. Bd2 {[%emt 0:00:18]} Nf4 {[%emt 0:00:26]} 10. Qe4 {[%emt 0:00:04]} Ne6 {[%emt 0:00:17]} 11. Nc3 {[%emt 0:00:09]} Bb7 {[%emt 0:00:49]} 12. O-O-O {[%emt 0:00:13]} a4 {[%emt 0:00:44]} 13. a3 {[%emt 0:01:03]} Be7 {[%emt 0:00:21]} 14. h4 {[%emt 0:00:22]} Qb8 {[%emt 0:00:51]} 15. Be3 {[%emt 0:00:32]} Ba6 {[%emt 0:00:29]} 16. f4 {[%emt 0:00:13]} Qb3 {[%emt 0:00:16]} 17. Qc2 {[%emt 0:00:01]} Bxc4 {[%emt 0:00:08]} 18. Bxc4 {[%emt 0:00:38]} Qxc4 {[%emt 0:00:00]} 19. f5 {[%emt 0:00:00]} Nc5 {[%emt 0:00:01]} 20. Bxc5 {[%emt 0:00:13]} Bxc5 {[%emt 0:00:02]} 21. Rhe1 {[%emt 0:01:13]} Qxh4 {[%emt 0:00:14]} 22. Ne4 {[%emt 0:00:10]} Bb6 {[%emt 0:00:09]} 23. Kb1 {[%emt 0:00:49]} O-O {[%emt 0:00:32]} 24. Qc4 {[%emt 0:00:13]} Qe7 {[%emt 0:00:34]} 25. Nf6+ {[%emt 0:00:12]} gxf6 {[%emt 0:00:52]} 26. Qg4+ {[%emt 0:00:01]} Kh8 {[%emt 0:00:02]} 27. Rh1 {[%emt 0:00:00]} Be3 {[%emt 0:00:39]} 28. Qh3 {[%emt 0:00:14]} h6 {[%emt 0:00:12]} 29. Qxe3 {[%emt 0:00:01]} 1-0

[Event "CCT Chessable Masters Play-In 2025"]
[Site "Online"]
[Date "2025.02.17"]
[Round "3.10"]
[White "Mamedov, Rauf"]
[Black "Sindarov, Javokhir"]
[Result "1/2-1/2"]
[ECO "B40"]
[WhiteElo "2656"]
[BlackElo "2700"]
[PlyCount "92"]
[EventDate "2025.02.13"]
[EventType "swiss"]
[EventCountry "NET"]
[TimeControl "600"]
[WhiteClock "0:00:52"]
[BlackClock "0:02:23"]

1. e4 {[%emt 0:00:01]} c5 {[%emt 0:00:01]} 2. Nf3 {[%emt 0:00:06]} e6 {[%emt 0:00:00]} 3. c3 {[%emt 0:00:01]} d5 {[%emt 0:00:01]} 4. e5 {[%emt 0:00:03]} d4 {[%emt 0:00:01]} 5. d3 {[%emt 0:00:00]} Nc6 {[%emt 0:00:12]} 6. g3 {[%emt 0:00:02]} Qc7 {[%emt 0:00:03]} 7. Qe2 {[%emt 0:00:02]} dxc3 {[%emt 0:00:00]} 8. Nxc3 {[%emt 0:00:03]} Nge7 {[%emt 0:00:05]} 9. Bg2 {[%emt 0:00:03]} Nf5 {[%emt 0:00:01]} 10. O-O {[%emt 0:00:12]} Be7 {[%emt 0:00:01]} 11. Nb5 {[%emt 0:00:41]} Qb6 {[%emt 0:00:07]} 12. d4 {[%emt 0:00:22]} Nfxd4 {[%emt 0:01:06]} 13. Nfxd4 {[%emt 0:00:05]} Nxd4 {[%emt 0:00:01]} 14. Nxd4 {[%emt 0:00:01]} cxd4 {[%emt 0:00:00]} 15. Qg4 {[%emt 0:00:01]} g6 {[%emt 0:00:13]} 16. Bh6 {[%emt 0:00:01]} Bd7 {[%emt 0:00:03]} 17. Rac1 {[%emt 0:00:01]} Bc6 {[%emt 0:00:11]} 18. Rfd1 {[%emt 0:01:16]} Rd8 {[%emt 0:00:31]} 19. Rc4 {[%emt 0:00:07]} Bxg2 {[%emt 0:01:06]} 20. Kxg2 {[%emt 0:00:01]} d3 {[%emt 0:00:39]} 21. Qe4 {[%emt 0:00:25]} d2 {[%emt 0:00:01]} 22. Rc2 {[%emt 0:00:16]} Qb4 {[%emt 0:00:38]} 23. Qe2 {[%emt 0:01:03]} g5 {[%emt 0:00:17]} 24. a3 {[%emt 0:00:03]} Qa5 {[%emt 0:00:15]} 25. Rcxd2 {[%emt 0:00:54]} Rxd2 {[%emt 0:00:01]} 26. Rxd2 {[%emt 0:00:01]} Rg8 {[%emt 0:00:00]} 27. Qd3 {[%emt 0:00:14]} Qd5+ {[%emt 0:00:02]} 28. Qxd5 {[%emt 0:00:00]} exd5 {[%emt 0:00:00]} 29. f4 {[%emt 0:00:01]} Kd7 {[%emt 0:01:04]} 30. Bxg5 {[%emt 0:01:24]} Bxg5 {[%emt 0:00:01]} 31. Rxd5+ {[%emt 0:00:02]} Ke6 {[%emt 0:00:00]} 32. Rd6+ {[%emt 0:00:01]} Ke7 {[%emt 0:00:00]} 33. fxg5 {[%emt 0:00:01]} Rxg5 {[%emt 0:00:01]} 34. Rd5 {[%emt 0:00:01]} Ke6 {[%emt 0:00:01]} 35. Rd6+ {[%emt 0:00:08]} Ke7 {[%emt 0:00:00]} 36. Rd5 {[%emt 0:00:02]} Ke6 {[%emt 0:00:01]} 37. Rb5 {[%emt 0:00:11]} b6 {[%emt 0:00:02]} 38. Kf3 {[%emt 0:00:15]} h5 {[%emt 0:00:07]} 39. a4 {[%emt 0:00:03]} Rxe5 {[%emt 0:00:27]} 40. Rxe5+ {[%emt 0:00:08]} Kxe5 {[%emt 0:00:00]} 41. g4 {[%emt 0:00:33]} hxg4+ {[%emt 0:00:03]} 42. Kxg4 {[%emt 0:00:01]} Ke4 {[%emt 0:00:00]} 43. Kg3 {[%emt 0:00:04]} Ke3 {[%emt 0:00:01]} 44. Kg4 {[%emt 0:00:02]} Ke4 {[%emt 0:00:03]} 45. Kg3 {[%emt 0:00:05]} Ke3 {[%emt 0:00:09]} 46. Kg4 {[%emt 0:00:01]} Ke4 {[%emt 0:00:01]} 1/2-1/2

[Event "CCT Chessable Masters Play-In 2025"]
[Site "Online"]
[Date "2025.02.17"]
[Round "3.11"]
[White "Deac, Bogdan-Daniel"]
[Black "Muradli, Mahammad"]
[Result "1/2-1/2"]
[ECO "D41"]
[WhiteElo "2692"]
[BlackElo "2588"]
[PlyCount "112"]
[EventDate "2025.02.13"]
[EventType "swiss"]
[EventCountry "NET"]
[TimeControl "600"]
[WhiteClock "0:00:04"]
[BlackClock "0:00:13"]

1. d4 {[%emt 0:00:01]} Nf6 {[%emt 0:00:03]} 2. Nf3 {[%emt 0:00:00]} d5 {[%emt 0:00:01]} 3. c4 {[%emt 0:00:01]} e6 {[%emt 0:00:01]} 4. Nc3 {[%emt 0:00:01]} c5 {[%emt 0:00:03]} 5. cxd5 {[%emt 0:00:01]} Nxd5 {[%emt 0:00:01]} 6. g3 {[%emt 0:00:07]} Nxc3 {[%emt 0:00:27]} 7. bxc3 {[%emt 0:00:03]} cxd4 {[%emt 0:00:00]} 8. cxd4 {[%emt 0:00:00]} Bb4+ {[%emt 0:00:00]} 9. Bd2 {[%emt 0:00:01]} Bxd2+ {[%emt 0:00:01]} 10. Qxd2 {[%emt 0:00:00]} b6 {[%emt 0:00:01]} 11. Bg2 {[%emt 0:00:00]} Bb7 {[%emt 0:00:00]} 12. O-O {[%emt 0:00:01]} O-O {[%emt 0:00:01]} 13. Rfc1 {[%emt 0:00:00]} Nd7 {[%emt 0:00:03]} 14. a4 {[%emt 0:00:03]} Rb8 {[%emt 0:00:31]} 15. Qb4 {[%emt 0:00:11]} Nf6 {[%emt 0:00:23]} 16. Ne5 {[%emt 0:01:15]} Nd5 {[%emt 0:00:11]} 17. Qb3 {[%emt 0:01:07]} a5 {[%emt 0:00:59]} 18. Nc6 {[%emt 0:01:18]} Bxc6 {[%emt 0:00:03]} 19. Rxc6 {[%emt 0:00:01]} Nb4 {[%emt 0:00:14]} 20. Rc4 {[%emt 0:00:01]} Qd7 {[%emt 0:00:13]} 21. e3 {[%emt 0:00:39]} Rfc8 {[%emt 0:00:03]} 22. Rac1 {[%emt 0:00:06]} g6 {[%emt 0:00:43]} 23. h4 {[%emt 0:00:10]} Rxc4 {[%emt 0:00:03]} 24. Rxc4 {[%emt 0:00:01]} Rc8 {[%emt 0:00:06]} 25. Bf1 {[%emt 0:00:03]} Rxc4 {[%emt 0:00:09]} 26. Bxc4 {[%emt 0:00:00]} Qc6 {[%emt 0:00:01]} 27. Bb5 {[%emt 0:00:13]} Qc2 {[%emt 0:00:48]} 28. Qxc2 {[%emt 0:00:09]} Nxc2 {[%emt 0:00:00]} 29. Kf1 {[%emt 0:00:00]} Kf8 {[%emt 0:00:03]} 30. Ke2 {[%emt 0:00:05]} Ke7 {[%emt 0:00:02]} 31. Kd2 {[%emt 0:00:29]} Nb4 {[%emt 0:00:01]} 32. e4 {[%emt 0:00:01]} f6 {[%emt 0:00:23]} 33. Kc3 {[%emt 0:00:41]} Kd6 {[%emt 0:01:01]} 34. f4 {[%emt 0:00:42]} e5 {[%emt 0:00:04]} 35. dxe5+ {[%emt 0:00:19]} fxe5 {[%emt 0:00:01]} 36. Bc4 {[%emt 0:00:00]} Nc6 {[%emt 0:00:31]} 37. Bg8 {[%emt 0:00:08]} h6 {[%emt 0:00:18]} 38. Bf7 {[%emt 0:00:17]} Nd4 {[%emt 0:00:14]} 39. Kd3 {[%emt 0:00:32]} b5 {[%emt 0:00:20]} 40. axb5 {[%emt 0:00:10]} Nxb5 {[%emt 0:00:00]} 41. Bxg6 {[%emt 0:00:01]} a4 {[%emt 0:00:03]} 42. Bf7 {[%emt 0:00:07]} a3 {[%emt 0:00:05]} 43. Ba2 {[%emt 0:00:03]} Nd4 {[%emt 0:00:23]} 44. Bc4 {[%emt 0:00:08]} Ke7 {[%emt 0:00:27]} 45. Kc3 {[%emt 0:00:22]} Kf6 {[%emt 0:00:06]} 46. fxe5+ {[%emt 0:00:06]} Kxe5 {[%emt 0:00:00]} 47. g4 {[%emt 0:00:01]} Nf3 {[%emt 0:00:21]} 48. g5 {[%emt 0:00:01]} h5 {[%emt 0:00:05]} 49. g6 {[%emt 0:00:05]} Kf6 {[%emt 0:00:02]} 50. Be2 {[%emt 0:00:01]} Nxh4 {[%emt 0:00:04]} 51. Bxh5 {[%emt 0:00:01]} a2 {[%emt 0:00:03]} 52. Kb2 {[%emt 0:00:01]} Nxg6 {[%emt 0:00:01]} 53. Bxg6 {[%emt 0:00:01]} Kxg6 {[%emt 0:00:00]} 54. Kxa2 {[%emt 0:00:01]} Kf6 {[%emt 0:00:00]} 55. Kb3 {[%emt 0:00:00]} Ke5 {[%emt 0:00:00]} 56. Kc3 {[%emt 0:00:00]} Kxe4 {[%emt 0:00:00]} 1/2-1/2